fUSD/lending_fUSD_20260606
["ID","MTS","AMOUNT","RATE_DAILY","PERIOD"]
[424277751,1780732232000,-500.0,8.651e-05,2]
[424277755,1780732232000,-500.0,8.651e-05,2]
[424277754,1780732232000,-500.0,8.651e-05,2]
[424277757,1780732232000,-500.0,8.651e-05,2]
[424277759,1780732232000,-500.0,8.651e-05,2]
[424277776,1780732232000,-500.0,8.651e-05,2]
[424277750,1780732232000,-500.0,8.651e-05,2]
[424277762,1780732232000,-500.0,8.651e-05,2]
[424277766,1780732232000,-500.0,8.651e-05,2]
[424277768,1780732232000,-459.45071919,8.651e-05,2]
[424277763,1780732232000,-500.0,8.651e-05,2]
[424277764,1780732232000,-500.0,8.651e-05,2]
[424277767,1780732232000,-500.0,8.651e-05,2]
[424277769,1780732232000,-500.0,8.651e-05,2]
[424277770,1780732232000,-500.0,8.651e-05,2]
[424277761,1780732232000,-500.0,8.651e-05,2]
[424277748,1780732232000,-500.0,8.651e-05,2]
[424277737,1780732232000,-336.96593092,8.651e-05,2]
[424277745,1780732232000,-500.0,8.651e-05,2]
[424277773,1780732232000,-500.0,8.651e-05,2]
[424277727,1780732232000,-437.436765,8.254e-05,2]
[424277728,1780732232000,-2850.19285121,8.254e-05,2]
[424277730,1780732232000,-6016.85092771,8.254e-05,2]
[424277729,1780732232000,-906.42945608,8.254e-05,2]
[424277731,1780732232000,-489.74414425,8.384e-05,2]
[424277733,1780732232000,-300.0,8.65e-05,2]
[424277743,1780732232000,-500.0,8.651e-05,2]
[424277732,1780732232000,-215.80795776,8.39e-05,2]
[424277747,1780732232000,-500.0,8.651e-05,2]
[424277734,1780732232000,-500.0,8.651e-05,2]
[424277741,1780732232000,-500.0,8.651e-05,2]
[424277735,1780732232000,-426.09527618,8.651e-05,2]
[424277739,1780732232000,-500.0,8.651e-05,2]
[424277742,1780732232000,-500.0,8.651e-05,2]
[424277740,1780732232000,-267.14689529,8.651e-05,2]
[424277738,1780732232000,-500.0,8.651e-05,2]
[424277744,1780732232000,-500.0,8.651e-05,2]
[424277746,1780732232000,-500.0,8.651e-05,2]
[424277756,1780732232000,-500.0,8.651e-05,2]
[424277736,1780732232000,-500.0,8.651e-05,2]
[424277779,1780732232000,-500.0,8.651e-05,2]
[424277765,1780732232000,-500.0,8.651e-05,2]
[424277780,1780732232000,-500.0,8.651e-05,2]
[424277799,1780732232000,-1019.45156053,8.651e-05,2]
[424277797,1780732232000,-1019.45156053,8.651e-05,2]
[424277801,1780732232000,-1019.45156053,8.651e-05,2]
[424277804,1780732232000,-1019.45156053,8.651e-05,2]
[424277805,1780732232000,-1019.45156053,8.651e-05,2]
[424277808,1780732232000,-1019.45156053,8.651e-05,2]
[424277806,1780732232000,-1019.45156053,8.651e-05,2]
[424277807,1780732232000,-1019.45156053,8.651e-05,2]
[424277809,1780732232000,-1019.45156053,8.651e-05,2]
[424277800,1780732232000,-1019.45156053,8.651e-05,2]
[424277811,1780732232000,-1019.45156053,8.651e-05,2]
[424277814,1780732232000,-1019.45156053,8.651e-05,2]
[424277810,1780732232000,-1019.45156053,8.651e-05,2]
[424277813,1780732232000,-1019.45156053,8.651e-05,2]
[424277815,1780732232000,-1019.45156053,8.651e-05,2]
[424277816,1780732232000,-1019.45156053,8.651e-05,2]
[424277817,1780732232000,-1019.45156053,8.651e-05,2]
[424277818,1780732232000,-1019.45156053,8.651e-05,2]
[424277819,1780732232000,-1019.45156053,8.651e-05,2]
[424277775,1780732232000,-500.0,8.651e-05,2]
[424277812,1780732232000,-1019.45156053,8.651e-05,2]
[424277803,1780732232000,-1019.45156053,8.651e-05,2]
[424277802,1780732232000,-1019.45156053,8.651e-05,2]
[424277795,1780732232000,-1019.45156053,8.651e-05,2]
[424277772,1780732232000,-500.0,8.651e-05,2]
[424277774,1780732232000,-500.0,8.651e-05,2]
[424277777,1780732232000,-500.0,8.651e-05,2]
[424277778,1780732232000,-500.0,8.651e-05,2]
[424277781,1780732232000,-1019.45156053,8.651e-05,2]
[424277820,1780732232000,-1019.45156053,8.651e-05,2]
[424277798,1780732232000,-1019.45156053,8.651e-05,2]
[424277782,1780732232000,-1019.45156053,8.651e-05,2]
[424277784,1780732232000,-1019.45156053,8.651e-05,2]
[424277785,1780732232000,-1019.45156053,8.651e-05,2]
[424277783,1780732232000,-1019.45156053,8.651e-05,2]
[424277787,1780732232000,-1019.45156053,8.651e-05,2]
[424277786,1780732232000,-1019.45156053,8.651e-05,2]
[424277794,1780732232000,-1019.45156053,8.651e-05,2]
[424277793,1780732232000,-1019.45156053,8.651e-05,2]
[424277789,1780732232000,-1019.45156053,8.651e-05,2]
[424277796,1780732232000,-1019.45156053,8.651e-05,2]
[424277792,1780732232000,-1019.45156053,8.651e-05,2]
[424277791,1780732232000,-1019.45156053,8.651e-05,2]
[424277790,1780732232000,-1019.45156053,8.651e-05,2]
[424277788,1780732232000,-1019.45156053,8.651e-05,2]
[424277829,1780732233000,-1013.17801245,8.651e-05,2]
[424277822,1780732233000,-1013.17801245,8.651e-05,2]
[424277821,1780732233000,-1019.45156053,8.651e-05,2]
[424277825,1780732233000,-1013.17801245,8.651e-05,2]
[424277823,1780732233000,-1013.17801245,8.651e-05,2]
[424277824,1780732233000,-1013.17801245,8.651e-05,2]
[424277826,1780732233000,-1013.17801245,8.651e-05,2]
[424277828,1780732233000,-1013.17801245,8.651e-05,2]
[424277838,1780732233000,-56193.81274092,8.652e-05,2]
[424277832,1780732233000,-1013.17801245,8.651e-05,2]
[424277831,1780732233000,-1013.17801245,8.651e-05,2]
[424277836,1780732233000,-150.0,8.651e-05,2]
[424277827,1780732233000,-1013.17801245,8.651e-05,2]
[424277841,1780732233000,500.45,0.00030136,120]
[424277840,1780732233000,-1142.86244284,8.652e-05,2]
[424277834,1780732233000,-1013.17801244,8.651e-05,2]
[424277839,1780732233000,-20185.12281496,8.652e-05,2]
[424277830,1780732233000,-1013.17801245,8.651e-05,2]
[424277835,1780732233000,-300.0,8.651e-05,2]
[424277833,1780732233000,-1013.17801245,8.651e-05,2]
[424277837,1780732233000,-320.82686136,8.651e-05,2]
[424277874,1780732238000,-33261.1868,9.368e-05,2]
[424277866,1780732238000,-33232.0,9.342e-05,2]
[424277864,1780732238000,-278.32,9.293e-05,2]
[424277869,1780732238000,-213.0,9.367e-05,2]
[424277868,1780732238000,-150.0,9.367e-05,2]
[424277867,1780732238000,-150.0,9.366e-05,2]
[424277870,1780732238000,-302.46,9.367e-05,2]
[424277872,1780732238000,-318.00214626,9.368e-05,2]
[424277876,1780732238000,-500.0,9.473e-05,2]
[424277871,1780732238000,-357.46982691,9.367e-05,2]
[424277875,1780732238000,-260.1,9.459e-05,2]
[424277865,1780732238000,-166.66,9.305e-05,2]
[424277878,1780732238000,-420.0,9.515e-05,2]
[424277877,1780732238000,-250.0,9.481e-05,2]
[424277881,1780732238000,-193.0,9.578e-05,2]
[424277882,1780732238000,-250.0,9.578e-05,2]
[424277883,1780732238000,-500.0,9.578e-05,2]
[424277873,1780732238000,-233.03875878,9.368e-05,2]
[424277863,1780732238000,-10000.0,9.268e-05,2]
[424277859,1780732238000,-644.20602625,9.222e-05,2]
[424277860,1780732238000,-7176.847,9.267e-05,2]
[424277879,1780732238000,-255.0,9.516e-05,2]
[424277844,1780732238000,-12340.95200128,8.652e-05,2]
[424277845,1780732238000,-150.0,8.737e-05,2]
[424277847,1780732238000,-2500000.0,8.776e-05,2]
[424277848,1780732238000,-4263.5319594,8.821e-05,2]
[424277851,1780732238000,-4722.40181848,8.871e-05,2]
[424277846,1780732238000,-1500000.0,8.776e-05,2]
[424277849,1780732238000,-186075.2220526,8.822e-05,2]
[424277850,1780732238000,-136.47965477,8.871e-05,2]
[424277852,1780732238000,-357.74672361,8.875e-05,2]
[424277854,1780732238000,-500.0,8.925e-05,2]
[424277853,1780732238000,-49001.33702217,8.876e-05,2]
[424277857,1780732238000,-265.51,9.132e-05,2]
[424277856,1780732238000,-500.0,9.059e-05,2]
[424277855,1780732238000,-166.66,9.026e-05,2]
[424277862,1780732238000,-2500.0,9.267e-05,2]
[424277858,1780732238000,-500.0,9.199e-05,2]
[424277861,1780732238000,-323.782,9.267e-05,2]
[424277880,1780732238000,-250.0,9.516e-05,2]
[424277890,1780732238000,-163.61,0.0001,2]
[424277886,1780732238000,-500.0,9.747e-05,2]
[424277905,1780732238000,-265.51,0.00010502,2]
[424277907,1780732238000,-4000.0,0.00010779,2]
[424277910,1780732238000,-150.0,0.00010959,2]
[424277911,1780732238000,-4550.67,0.00010959,2]
[424277912,1780732238000,-265.51,0.00010959,2]
[424277913,1780732238000,-4000.0,0.0001103,2]
[424277917,1780732238000,-74435.46897934,0.00011099,2]
[424277920,1780732238000,-74435.46897934,0.00011099,2]
[424277908,1780732238000,-8203.91781114,0.000108,2]
[424277915,1780732238000,-250.0,0.00011078,2]
[424277919,1780732238000,-74435.46897934,0.00011099,2]
[424277921,1780732238000,-74435.46897934,0.00011099,2]
[424277916,1780732238000,-74435.46897938,0.00011099,2]
[424277922,1780732238000,-74435.46897934,0.00011099,2]
[424277923,1780732238000,-74435.46897934,0.00011099,2]
[424277925,1780732238000,-74435.46897934,0.0001127,2]
[424277924,1780732238000,-150.0,0.00011233,2]
[424277884,1780732238000,-166.66,9.585e-05,2]
[424277918,1780732238000,-74435.46897934,0.00011099,2]
[424277901,1780732238000,-500.0,0.00010295,2]
[424277914,1780732238000,-2000.0,0.00011073,2]
[424277904,1780732238000,-433.0,0.00010468,2]
[424277885,1780732238000,-265.51,9.589e-05,2]
[424277903,1780732238000,-587.0,0.00010466,2]
[424277887,1780732238000,-166.66,9.864e-05,2]
[424277892,1780732238000,-186.28820969,0.0001,2]
[424277888,1780732238000,-2000.0,9.965e-05,2]
[424277896,1780732238000,-500.0,0.00010021,2]
[424277897,1780732238000,-4000.0,0.00010027,2]
[424277891,1780732238000,-186.28820969,0.0001,2]
[424277889,1780732238000,-500.0,9.973e-05,2]
[424277894,1780732238000,-1582.13823907,0.0001,2]
[424277893,1780732238000,-186.28820969,0.0001,2]
[424277898,1780732238000,-265.51,0.00010046,2]
[424277899,1780732238000,-278.32,0.00010121,2]
[424277900,1780732238000,-4000.0,0.00010278,2]
[424277902,1780732238000,-44824.87,0.0001041,2]
[424277909,1780732238000,-150.0,0.00010959,2]
[424277895,1780732238000,-18577.25556688,0.0001,2]
[424277906,1780732238000,-4000.0,0.00010529,2]
[424277967,1780732239000,-25000.0,0.00012814,3]
[424277965,1780732239000,-25000.0,0.00012796,3]
[424277964,1780732239000,-25000.0,0.00012787,3]
[424277962,1780732239000,-25000.0,0.0001277,3]
[424277961,1780732239000,-25000.0,0.00012761,3]
[424277963,1780732239000,-25000.0,0.00012778,3]
[424277960,1780732239000,-25000.0,0.00012752,3]
[424277958,1780732239000,-1252.0,0.00012665,2]
[424277955,1780732239000,-160.0,0.00012618,2]
[424277968,1780732239000,-25000.0,0.00012822,3]
[424277957,1780732239000,-188.119129,0.00012618,2]
[424277959,1780732239000,-25000.0,0.00012743,3]
[424277966,1780732239000,-25000.0,0.00012805,3]
[424277974,1780732239000,-25000.0,0.00012875,3]
[424277969,1780732239000,-25000.0,0.00012831,3]
[424277976,1780732239000,-25000.0,0.00012893,3]
[424277973,1780732239000,-25000.0,0.00012866,3]
[424277972,1780732239000,-25000.0,0.00012858,3]
[424277971,1780732239000,-25000.0,0.00012849,3]
[424277975,1780732239000,-25000.0,0.00012884,3]
[424277980,1780732239000,-2000.0,0.00013287,2]
[424277978,1780732239000,-164.128094,0.0001323,2]
[424277979,1780732239000,-237.353951,0.00013249,2]
[424277977,1780732239000,-342.71000071,0.00013219,2]
[424277981,1780732239000,-500.0,0.0001337,2]
[424277956,1780732239000,-174.059564,0.00012618,2]
[424277970,1780732239000,-25000.0,0.0001284,3]
[424277953,1780732239000,-203.339585,0.00012583,2]
[424277927,1780732239000,-1582.13823905,0.00011433,2]
[424277951,1780732239000,-210.36186942,0.00012329,2]
[424277983,1780732239000,-712.0,0.00013425,2]
[424277928,1780732239000,-5609.0,0.00011507,2]
[424277934,1780732239000,-318.00214626,0.00012084,2]
[424277930,1780732239000,-736.0,0.00011514,2]
[424277932,1780732239000,-265.51,0.00011872,2]
[424277926,1780732239000,-265.51,0.00011416,2]
[424277929,1780732239000,-603.0,0.00011513,2]
[424277931,1780732239000,-74435.46897934,0.00011582,2]
[424277933,1780732239000,-38328.62,0.00012055,2]
[424277935,1780732239000,-233.03875878,0.00012084,2]
[424277939,1780732239000,-150.99,0.00012087,2]
[424277938,1780732239000,-2092.57,0.00012087,2]
[424277954,1780732239000,-167.730127,0.00012609,2]
[424277936,1780732239000,-9999.99,0.00012087,2]
[424277944,1780732239000,-4999.99,0.00012087,2]
[424277941,1780732239000,-9999.99,0.00012087,2]
[424277946,1780732239000,-299.99,0.00012087,2]
[424277942,1780732239000,-24999.99,0.00012087,2]
[424277945,1780732239000,-999.99,0.00012087,2]
[424277943,1780732239000,-9704.2,0.00012087,2]
[424277937,1780732239000,-9999.99,0.00012087,2]
[424277948,1780732239000,-2000.0,0.0001218,2]
[424277947,1780732239000,-8762.75,0.00012087,2]
[424277949,1780732239000,-450.55,0.00012329,2]
[424277952,1780732239000,-265.51,0.00012329,2]
[424277950,1780732239000,-342.71000071,0.00012329,2]
[424277940,1780732239000,-11107.06,0.00012087,2]
[424277984,1780732239000,-712.0,0.00013425,2]
[424278025,1780732239000,-515.0,0.00013425,2]
[424277986,1780732239000,-712.0,0.00013425,2]
[424278017,1780732239000,-712.0,0.00013425,2]
[424278018,1780732239000,-359.92465112,0.00013425,2]
[424278027,1780732239000,-515.0,0.00013425,2]
[424278016,1780732239000,-1166.0,0.00013425,2]
[424278019,1780732239000,-515.0,0.00013425,2]
[424278020,1780732239000,-1166.0,0.00013425,2]
[424278023,1780732239000,-1166.0,0.00013425,2]
[424278022,1780732239000,-515.0,0.00013425,2]
[424278021,1780732239000,-712.0,0.00013425,2]
[424278026,1780732239000,-1166.0,0.00013425,2]
[424278024,1780732239000,-712.0,0.00013425,2]
[424278031,1780732239000,-515.0,0.00013425,2]
[424278015,1780732239000,-712.0,0.00013425,2]
[424278030,1780732239000,-515.0,0.00013425,2]
[424278032,1780732239000,-712.0,0.00013425,2]
[424278033,1780732239000,-515.0,0.00013425,2]
[424278029,1780732239000,-712.0,0.00013425,2]
[424278036,1780732239000,-515.0,0.00013425,2]
[424278039,1780732239000,-712.0,0.00013425,2]
[424278035,1780732239000,-515.0,0.00013425,2]
[424278034,1780732239000,-515.0,0.00013425,2]
[424278038,1780732239000,-515.0,0.00013425,2]
[424278037,1780732239000,-515.0,0.00013425,2]
[424278041,1780732239000,-515.0,0.00013425,2]
[424278042,1780732239000,-515.0,0.00013425,2]
[424277982,1780732239000,-158.06927802,0.00013425,2]
[424278040,1780732239000,-1166.0,0.00013425,2]
[424278014,1780732239000,-500.0,0.00013425,2]
[424278028,1780732239000,-515.0,0.00013425,2]
[424278012,1780732239000,-712.0,0.00013425,2]
[424277985,1780732239000,-500.0,0.00013425,2]
[424278010,1780732239000,-1166.0,0.00013425,2]
[424277987,1780732239000,-500.0,0.00013425,2]
[424277992,1780732239000,-500.0,0.00013425,2]
[424277991,1780732239000,-500.0,0.00013425,2]
[424277988,1780732239000,-712.0,0.00013425,2]
[424277989,1780732239000,-500.0,0.00013425,2]
[424277990,1780732239000,-712.0,0.00013425,2]
[424277994,1780732239000,-500.0,0.00013425,2]
[424277995,1780732239000,-500.0,0.00013425,2]
[424277993,1780732239000,-712.0,0.00013425,2]
[424277997,1780732239000,-500.0,0.00013425,2]
[424277996,1780732239000,-712.0,0.00013425,2]
[424277998,1780732239000,-500.0,0.00013425,2]
[424278003,1780732239000,-712.0,0.00013425,2]
[424278009,1780732239000,-712.0,0.00013425,2]
[424278013,1780732239000,-1166.0,0.00013425,2]
[424278002,1780732239000,-500.0,0.00013425,2]
[424278011,1780732239000,-500.0,0.00013425,2]
[424278008,1780732239000,-500.0,0.00013425,2]
[424278007,1780732239000,-1166.0,0.00013425,2]
[424278005,1780732239000,-500.0,0.00013425,2]
[424278006,1780732239000,-712.0,0.00013425,2]
[424277999,1780732239000,-712.0,0.00013425,2]
[424278001,1780732239000,-1166.0,0.00013425,2]
[424278000,1780732239000,-493.76494927,0.00013425,2]
[424278004,1780732239000,-1166.0,0.00013425,2]
[424278083,1780732240000,-224.92811501,0.00013425,2]
[424278086,1780732240000,-500.0,0.00013425,2]
[424278088,1780732240000,-500.0,0.00013425,2]
[424278081,1780732240000,-500.0,0.00013425,2]
[424278082,1780732240000,-500.0,0.00013425,2]
[424278076,1780732240000,-500.0,0.00013425,2]
[424278078,1780732240000,-500.0,0.00013425,2]
[424278075,1780732240000,-500.0,0.00013425,2]
[424278077,1780732240000,-1185.11670942,0.00013425,2]
[424278091,1780732240000,-500.0,0.00013425,2]
[424278073,1780732240000,-500.0,0.00013425,2]
[424278080,1780732240000,-500.0,0.00013425,2]
[424278084,1780732240000,-150.0,0.00013425,2]
[424278102,1780732240000,-565.0,0.00013425,2]
[424278085,1780732240000,-197.22054503,0.00013425,2]
[424278087,1780732240000,-500.0,0.00013425,2]
[424278090,1780732240000,-500.0,0.00013425,2]
[424278093,1780732240000,-500.0,0.00013425,2]
[424278103,1780732240000,-565.0,0.00013425,2]
[424278092,1780732240000,-500.0,0.00013425,2]
[424278094,1780732240000,-396.32957951,0.00013425,2]
[424278097,1780732240000,-565.0,0.00013425,2]
[424278095,1780732240000,-565.0,0.00013425,2]
[424278096,1780732240000,-565.0,0.00013425,2]
[424278099,1780732240000,-565.0,0.00013425,2]
[424278074,1780732240000,-536.50885793,0.00013425,2]
[424278098,1780732240000,-565.0,0.00013425,2]
[424278089,1780732240000,-500.0,0.00013425,2]
[424278072,1780732240000,-500.0,0.00013425,2]
[424278053,1780732240000,-1166.0,0.00013425,2]
[424278071,1780732240000,-1166.0,0.00013425,2]
[424278100,1780732240000,-565.0,0.00013425,2]
[424278043,1780732240000,-1166.0,0.00013425,2]
[424278044,1780732240000,-515.0,0.00013425,2]
[424278045,1780732240000,-1166.0,0.00013425,2]
[424278049,1780732240000,-1166.0,0.00013425,2]
[424278046,1780732240000,-1166.0,0.00013425,2]
[424278047,1780732240000,-1166.0,0.00013425,2]
[424278052,1780732240000,-515.0,0.00013425,2]
[424278048,1780732240000,-515.0,0.00013425,2]
[424278051,1780732240000,-712.0,0.00013425,2]
[424278050,1780732240000,-1166.0,0.00013425,2]
[424278054,1780732240000,-1166.0,0.00013425,2]
[424278060,1780732240000,-150.0,0.00013425,2]
[424278070,1780732240000,-720.0953843,0.00013425,2]
[424278066,1780732240000,-712.0,0.00013425,2]
[424278057,1780732240000,-1166.0,0.00013425,2]
[424278064,1780732240000,-515.0,0.00013425,2]
[424278062,1780732240000,-150.0,0.00013425,2]
[424278061,1780732240000,-712.0,0.00013425,2]
[424278065,1780732240000,-1166.0,0.00013425,2]
[424278059,1780732240000,-1166.0,0.00013425,2]
[424278056,1780732240000,-712.0,0.00013425,2]
[424278063,1780732240000,-206.7425237,0.00013425,2]
[424278058,1780732240000,-515.0,0.00013425,2]
[424278067,1780732240000,-515.0,0.00013425,2]
[424278068,1780732240000,-1166.0,0.00013425,2]
[424278069,1780732240000,-515.0,0.00013425,2]
[424278079,1780732240000,-500.0,0.00013425,2]
[424278055,1780732240000,-515.0,0.00013425,2]
[424278101,1780732240000,-565.0,0.00013425,2]
[424278154,1780732240000,-150.0,0.0001352,2]
[424278106,1780732240000,-565.0,0.00013425,2]
[424278135,1780732240000,-500.0,0.00013425,2]
[424278133,1780732240000,-166.00519298,0.00013425,2]
[424278138,1780732240000,-500.0,0.00013425,2]
[424278139,1780732240000,-278.23959598,0.00013425,2]
[424278142,1780732240000,-150.0,0.00013488,2]
[424278144,1780732240000,-150.0,0.00013488,2]
[424278150,1780732240000,-203.77673036,0.00013488,2]
[424278166,1780732240000,-150.0,0.00013602,2]
[424278153,1780732240000,-150.0,0.00013504,2]
[424278155,1780732240000,-150.0,0.0001353,2]
[424278143,1780732240000,-150.0,0.00013488,2]
[424278146,1780732240000,-150.0,0.00013488,2]
[424278151,1780732240000,-150.0,0.00013488,2]
[424278147,1780732240000,-150.0,0.00013488,2]
[424278148,1780732240000,-150.0,0.00013488,2]
[424278145,1780732240000,-150.0,0.00013488,2]
[424278149,1780732240000,-150.0,0.00013488,2]
[424278157,1780732240000,-150.0,0.00013553,2]
[424278167,1780732240000,-150.0,0.00013616,2]
[424278168,1780732240000,-150.0,0.00013618,2]
[424278156,1780732240000,-150.0,0.00013537,2]
[424278161,1780732240000,-150.0,0.00013559,2]
[424278159,1780732240000,-150.0,0.00013553,2]
[424278164,1780732240000,-150.0,0.00013585,2]
[424278163,1780732240000,-150.0,0.00013573,2]
[424278165,1780732240000,-1582.13823905,0.00013598,2]
[424278104,1780732240000,-565.0,0.00013425,2]
[424278134,1780732240000,-278.44102927,0.00013425,2]
[424278136,1780732240000,-500.0,0.00013425,2]
[424278162,1780732240000,-150.0,0.00013569,2]
[424278140,1780732240000,-150.0,0.00013488,2]
[424278137,1780732240000,-500.0,0.00013425,2]
[424278105,1780732240000,-565.0,0.00013425,2]
[424278116,1780732240000,-565.0,0.00013425,2]
[424278109,1780732240000,-565.0,0.00013425,2]
[424278117,1780732240000,-565.0,0.00013425,2]
[424278110,1780732240000,-565.0,0.00013425,2]
[424278112,1780732240000,-565.0,0.00013425,2]
[424278108,1780732240000,-565.0,0.00013425,2]
[424278111,1780732240000,-565.0,0.00013425,2]
[424278107,1780732240000,-565.0,0.00013425,2]
[424278114,1780732240000,-565.0,0.00013425,2]
[424278113,1780732240000,-565.0,0.00013425,2]
[424278129,1780732240000,-150.0,0.00013425,2]
[424278119,1780732240000,-500.0,0.00013425,2]
[424278115,1780732240000,-565.0,0.00013425,2]
[424278120,1780732240000,-500.0,0.00013425,2]
[424278118,1780732240000,-587.36410633,0.00013425,2]
[424278131,1780732240000,-218.73222612,0.00013425,2]
[424278141,1780732240000,-150.0,0.00013488,2]
[424278130,1780732240000,-287.44605956,0.00013425,2]
[424278125,1780732240000,-500.0,0.00013425,2]
[424278127,1780732240000,-500.0,0.00013425,2]
[424278132,1780732240000,-150.0,0.00013425,2]
[424278122,1780732240000,-500.0,0.00013425,2]
[424278121,1780732240000,-500.0,0.00013425,2]
[424278124,1780732240000,-500.0,0.00013425,2]
[424278128,1780732240000,-183.93938706,0.00013425,2]
[424278126,1780732240000,-500.0,0.00013425,2]
[424278123,1780732240000,-500.0,0.00013425,2]
[424278220,1780732241000,-560.57,0.00013698,2]
[424278210,1780732241000,-560.57,0.00013698,2]
[424278208,1780732241000,-560.57,0.00013698,2]
[424278209,1780732241000,-560.57,0.00013698,2]
[424278200,1780732241000,-560.57,0.00013698,2]
[424278204,1780732241000,-560.57,0.00013698,2]
[424278197,1780732241000,-560.57,0.00013698,2]
[424278196,1780732241000,-338.87344356,0.00013698,2]
[424278203,1780732241000,-560.57,0.00013698,2]
[424278217,1780732241000,-514.39,0.00013698,2]
[424278202,1780732241000,-560.57,0.00013698,2]
[424278199,1780732241000,-560.57,0.00013698,2]
[424278213,1780732241000,-514.39,0.00013698,2]
[424278214,1780732241000,-560.57,0.00013698,2]
[424278211,1780732241000,-560.57,0.00013698,2]
[424278212,1780732241000,-560.57,0.00013698,2]
[424278216,1780732241000,-560.57,0.00013698,2]
[424278219,1780732241000,-514.39,0.00013698,2]
[424278218,1780732241000,-560.57,0.00013698,2]
[424278231,1780732241000,-560.57,0.00013698,2]
[424278235,1780732241000,-560.57,0.00013698,2]
[424278221,1780732241000,-514.39,0.00013698,2]
[424278233,1780732241000,-514.39,0.00013698,2]
[424278225,1780732241000,-514.39,0.00013698,2]
[424278237,1780732241000,-560.7733412,0.00013698,2]
[424278201,1780732241000,-560.57,0.00013698,2]
[424278215,1780732241000,-514.39,0.00013698,2]
[424278205,1780732241000,-560.57,0.00013698,2]
[424278183,1780732241000,-500.0,0.00013698,2]
[424278207,1780732241000,-560.57,0.00013698,2]
[424278169,1780732241000,-150.0,0.00013618,2]
[424278180,1780732241000,-500.0,0.00013698,2]
[424278170,1780732241000,-150.0,0.0001363,2]
[424278179,1780732241000,-500.0,0.00013698,2]
[424278178,1780732241000,-150.0,0.00013683,2]
[424278175,1780732241000,-150.0,0.00013659,2]
[424278176,1780732241000,-150.0,0.00013667,2]
[424278177,1780732241000,-150.0,0.00013683,2]
[424278172,1780732241000,-150.0,0.00013651,2]
[424278173,1780732241000,-150.0,0.00013654,2]
[424278171,1780732241000,-150.0,0.00013634,2]
[424278174,1780732241000,-150.0,0.00013654,2]
[424278194,1780732241000,-500.0,0.00013698,2]
[424278181,1780732241000,-500.4612262,0.00013698,2]
[424278185,1780732241000,-500.0,0.00013698,2]
[424278184,1780732241000,-500.0,0.00013698,2]
[424278189,1780732241000,-500.0,0.00013698,2]
[424278191,1780732241000,-500.0,0.00013698,2]
[424278186,1780732241000,-500.0,0.00013698,2]
[424278187,1780732241000,-500.0,0.00013698,2]
[424278193,1780732241000,-279.66288883,0.00013698,2]
[424278192,1780732241000,-500.0,0.00013698,2]
[424278188,1780732241000,-500.0,0.00013698,2]
[424278190,1780732241000,-500.0,0.00013698,2]
[424278195,1780732241000,-500.0,0.00013698,2]
[424278206,1780732241000,-560.57,0.00013698,2]
[424278182,1780732241000,-500.99630426,0.00013698,2]
[424278223,1780732241000,-560.57,0.00013698,2]
[424278229,1780732241000,-514.39,0.00013698,2]
[424278239,1780732241000,-514.39,0.00013698,2]
[424278289,1780732241000,-500.0,0.00013698,2]
[424278297,1780732241000,-500.0,0.00013698,2]
[424278299,1780732241000,-500.0,0.00013698,2]
[424278309,1780732241000,-500.0,0.00013698,2]
[424278300,1780732241000,-500.0,0.00013698,2]
[424278298,1780732241000,-500.0,0.00013698,2]
[424278310,1780732241000,-500.0,0.00013698,2]
[424278311,1780732241000,-500.0,0.00013698,2]
[424278301,1780732241000,-500.0,0.00013698,2]